[Event "January 9 Early 2024"]
[Site "https://www.chess.com"]
[Date "2024.01.11"]
[Round "3"]
[White "Tatarinov, Dmitry"]
[Black "Zemlyanskii, Ivan"]
[Result "1/2-1/2"]
[Board "306"]
[TimeControl "180+1"]
[WhiteFideId "24160067"]
[BlackFideId "24249971"]
[WhiteElo "2755"]
[BlackElo "2994"]
[WhiteTeam "RUS"]
[BlackTeam "RUS"]
[WhiteClock "0:00:09"]
[BlackClock "0:00:07"]

1. c4 {[%clk 0:02:59]}  e6 {[%clk 0:03:00]} 2. d4 {[%clk 0:02:59]}  d5 {[%clk 0:03:00]} 3. Nc3 {[%clk 0:02:58]}  c6 {[%clk 0:03:00]} 4. e3 {[%clk 0:02:55]}  Nf6 {[%clk 0:03:00]} 5. Bd3 {[%clk 0:02:55]}  Nbd7 {[%clk 0:02:56]} 6. Nf3 {[%clk 0:02:54]}  dxc4 {[%clk 0:02:56]} 7. Bxc4 {[%clk 0:02:55]}  b5 {[%clk 0:02:57]} 8. Bd3 {[%clk 0:02:46]}  Bb7 {[%clk 0:02:57]} 9. O-O {[%clk 0:02:42]}  a6 {[%clk 0:02:57]} 10. a4 {[%clk 0:02:23]}  b4 {[%clk 0:02:57]} 11. Ne4 {[%clk 0:02:22]}  c5 {[%clk 0:02:56]} 12. Nxc5 {[%clk 0:02:19]}  Bxc5 {[%clk 0:02:53]} 13. dxc5 {[%clk 0:02:20]}  Nxc5 {[%clk 0:02:54]} 14. Be2 {[%clk 0:02:18]}  Qe7 {[%clk 0:02:51]} 15. a5 {[%clk 0:02:10]}  O-O {[%clk 0:02:49]} 16. Bd2 {[%clk 0:02:06]}  Rfd8 {[%clk 0:02:49]} 17. Qe1 {[%clk 0:02:04]}  Bxf3 {[%clk 0:02:08]} 18. Bxf3 {[%clk 0:01:57]}  Nd3 {[%clk 0:02:08]} 19. Qe2 {[%clk 0:01:51]}  Rac8 {[%clk 0:02:02]} 20. Be1 {[%clk 0:00:56]}  e5 {[%clk 0:01:58]} 21. e4 {[%clk 0:00:27]}  Qc5 {[%clk 0:01:53]} 22. Bd2 {[%clk 0:00:20]}  Qc2 {[%clk 0:01:33]} 23. Be3 {[%clk 0:00:20]}  Qb3 {[%clk 0:01:29]} 24. Rfd1 {[%clk 0:00:19]}  h6 {[%clk 0:00:58]} 25. h3 {[%clk 0:00:18]}  Qxb2 {[%clk 0:00:30]} 26. Qxb2 {[%clk 0:00:18]}  Nxb2 {[%clk 0:00:31]} 27. Rdb1 {[%clk 0:00:19]}  Nd3 {[%clk 0:00:30]} 28. Rb3 {[%clk 0:00:17]}  Rc3 {[%clk 0:00:29]} 29. Rab1 {[%clk 0:00:16]}  Rdc8 {[%clk 0:00:23]} 30. Be2 {[%clk 0:00:14]}  Nc1 {[%clk 0:00:19]} 31. Bxc1 {[%clk 0:00:07]}  Rxc1+ {[%clk 0:00:20]} 32. Kh2 {[%clk 0:00:07]}  R1c2 {[%clk 0:00:19]} 33. Bxa6 {[%clk 0:00:06]}  Ra8 {[%clk 0:00:18]} 34. Bd3 {[%clk 0:00:05]}  Rxf2 {[%clk 0:00:18]} 35. a6 {[%clk 0:00:05]}  Rd2 {[%clk 0:00:15]} 36. Ra1 {[%clk 0:00:05]}  Nd7 {[%clk 0:00:13]} 37. Bc4 {[%clk 0:00:05]}  Rd4 {[%clk 0:00:13]} 38. Rxb4 {[%clk 0:00:04]}  Kh7 {[%clk 0:00:08]} 39. a7 {[%clk 0:00:04]}  Nc5 {[%clk 0:00:02]} 40. Bd5 {[%clk 0:00:04]}  Rxa7 {[%clk 0:00:02]} 41. Rxa7 {[%clk 0:00:02]}  Rxb4 {[%clk 0:00:03]} 42. Rxf7 {[%clk 0:00:03]}  Nxe4 {[%clk 0:00:03]} 43. Re7 {[%clk 0:00:03]}  Nf6 {[%clk 0:00:02]} 44. Rxe5 {[%clk 0:00:03]}  Rd4 {[%clk 0:00:03]} 45. Be6 {[%clk 0:00:03]}  Kg6 {[%clk 0:00:03]} 46. Bf5+ {[%clk 0:00:04]}  Kf7 {[%clk 0:00:04]} 47. Be6+ {[%clk 0:00:04]}  Kf8 {[%clk 0:00:04]} 48. Bf5 {[%clk 0:00:04]}  Rd6 {[%clk 0:00:05]} 49. Bg6 {[%clk 0:00:04]}  Rd8 {[%clk 0:00:03]} 50. h4 {[%clk 0:00:05]}  Nd7 {[%clk 0:00:02]} 51. Rf5+ {[%clk 0:00:04]}  Kg8 {[%clk 0:00:02]} 52. Rd5 {[%clk 0:00:05]}  Kf8 {[%clk 0:00:02]} 53. Bf5 {[%clk 0:00:05]}  Ke7 {[%clk 0:00:03]} 54. Bxd7 {[%clk 0:00:06]}  Rxd7 {[%clk 0:00:04]} 55. Rxd7+ {[%clk 0:00:06]}  Kxd7 {[%clk 0:00:05]} 56. g4 {[%clk 0:00:07]}  Ke6 {[%clk 0:00:05]} 57. Kg3 {[%clk 0:00:08]}  Ke5 {[%clk 0:00:06]} 58. Kf3 {[%clk 0:00:08]}  g6 {[%clk 0:00:06]} 59. Ke3 {[%clk 0:00:08]}  g5 {[%clk 0:00:05]} 60. h5 {[%clk 0:00:07]}  Kd5 {[%clk 0:00:05]} 61. Kd3 {[%clk 0:00:08]}  Ke5 {[%clk 0:00:05]} 62. Ke3 {[%clk 0:00:08]}  Kd5 {[%clk 0:00:06]} 63. Kd3 {[%clk 0:00:08]}  Ke5 {[%clk 0:00:07]} 64. Ke3 {[%clk 0:00:09]} 1/2-1/2

[Event "January 9 Early 2024"]
[Site "https://www.chess.com"]
[Date "2024.01.11"]
[Round "3"]
[White "Kukhmazov, Arsen"]
[Black "Batsiashvili, Nino"]
[Result "1-0"]
[Board "307"]
[TimeControl "180+1"]
[WhiteFideId "24108260"]
[BlackFideId "13602993"]
[WhiteElo "2904"]
[BlackElo "2520"]
[WhiteTeam "FID"]
[BlackTeam "GEO"]
[WhiteClock "0:00:08"]
[BlackClock "0:00:13"]

1. d4 {[%clk 0:02:54]}  Nf6 {[%clk 0:02:56]} 2. c4 {[%clk 0:02:55]}  c5 {[%clk 0:02:56]} 3. d5 {[%clk 0:02:55]}  b5 {[%clk 0:02:57]} 4. Qc2 {[%clk 0:02:55]}  bxc4 {[%clk 0:02:53]} 5. e4 {[%clk 0:02:56]}  d6 {[%clk 0:02:50]} 6. Bxc4 {[%clk 0:02:56]}  g6 {[%clk 0:02:51]} 7. Nf3 {[%clk 0:02:56]}  Bg7 {[%clk 0:02:51]} 8. h3 {[%clk 0:02:57]}  O-O {[%clk 0:02:51]} 9. O-O {[%clk 0:02:58]}  Nbd7 {[%clk 0:02:50]} 10. Nc3 {[%clk 0:02:58]}  Nb6 {[%clk 0:02:50]} 11. Be2 {[%clk 0:02:59]}  e6 {[%clk 0:02:41]} 12. dxe6 {[%clk 0:02:55]}  fxe6 {[%clk 0:02:41]} 13. e5 {[%clk 0:02:53]}  dxe5 {[%clk 0:02:42]} 14. Nxe5 {[%clk 0:02:54]}  Bb7 {[%clk 0:02:42]} 15. Rd1 {[%clk 0:02:50]}  Nfd5 {[%clk 0:02:41]} 16. Nf3 {[%clk 0:02:40]}  Qe7 {[%clk 0:02:24]} 17. Ne4 {[%clk 0:02:31]}  Rac8 {[%clk 0:02:19]} 18. Bg5 {[%clk 0:02:31]}  Qc7 {[%clk 0:02:12]} 19. Rac1 {[%clk 0:02:10]}  Nf4 {[%clk 0:01:58]} 20. Bxf4 {[%clk 0:02:03]}  Qxf4 {[%clk 0:01:59]} 21. Nd6 {[%clk 0:02:03]}  Bxf3 {[%clk 0:01:39]} 22. Bxf3 {[%clk 0:02:04]}  Rc7 {[%clk 0:01:35]} 23. Qe4 {[%clk 0:01:05]}  Qxe4 {[%clk 0:01:09]} 24. Nxe4 {[%clk 0:01:06]}  c4 {[%clk 0:01:02]} 25. b3 {[%clk 0:01:02]}  c3 {[%clk 0:00:56]} 26. Rc2 {[%clk 0:01:02]}  Nd5 {[%clk 0:00:55]} 27. a3 {[%clk 0:00:55]}  h6 {[%clk 0:00:54]} 28. Nd6 {[%clk 0:00:51]}  Rd8 {[%clk 0:00:38]} 29. Nb5 {[%clk 0:00:29]}  Rc5 {[%clk 0:00:34]} 30. a4 {[%clk 0:00:23]}  a6 {[%clk 0:00:34]} 31. Na3 {[%clk 0:00:24]}  Kf7 {[%clk 0:00:31]} 32. Nc4 {[%clk 0:00:22]}  Rcc8 {[%clk 0:00:26]} 33. Kf1 {[%clk 0:00:15]}  Nb4 {[%clk 0:00:27]} 34. Rxd8 {[%clk 0:00:08]}  Rxd8 {[%clk 0:00:26]} 35. Rc1 {[%clk 0:00:09]}  c2 {[%clk 0:00:24]} 36. Ke2 {[%clk 0:00:04]}  Bb2 {[%clk 0:00:24]} 37. Nxb2 {[%clk 0:00:03]}  Rc8 {[%clk 0:00:18]} 38. Nc4 {[%clk 0:00:03]}  Rc5 {[%clk 0:00:16]} 39. Be4 {[%clk 0:00:04]}  a5 {[%clk 0:00:15]} 40. Bxc2 {[%clk 0:00:03]}  Na2 {[%clk 0:00:16]} 41. Rf1 {[%clk 0:00:03]}  Nc3+ {[%clk 0:00:16]} 42. Kd3 {[%clk 0:00:03]}  Nd5 {[%clk 0:00:17]} 43. Bd1 {[%clk 0:00:04]}  Nb4+ {[%clk 0:00:17]} 44. Kc3 {[%clk 0:00:04]}  Rd5 {[%clk 0:00:18]} 45. Be2 {[%clk 0:00:04]}  Rg5 {[%clk 0:00:17]} 46. g3 {[%clk 0:00:04]}  Rd5 {[%clk 0:00:16]} 47. Rd1 {[%clk 0:00:04]}  Rc5 {[%clk 0:00:15]} 48. f4 {[%clk 0:00:05]}  Kf6 {[%clk 0:00:15]} 49. Rd7 {[%clk 0:00:05]}  Na2+ {[%clk 0:00:16]} 50. Kb2 {[%clk 0:00:05]}  Nb4 {[%clk 0:00:16]} 51. Bf3 {[%clk 0:00:05]}  g5 {[%clk 0:00:15]} 52. fxg5+ {[%clk 0:00:04]}  hxg5 {[%clk 0:00:16]} 53. h4 {[%clk 0:00:05]}  gxh4 {[%clk 0:00:16]} 54. gxh4 {[%clk 0:00:06]}  Rf5 {[%clk 0:00:17]} 55. Nd2 {[%clk 0:00:06]}  Rf4 {[%clk 0:00:17]} 56. h5 {[%clk 0:00:06]}  Rh4 {[%clk 0:00:17]} 57. Ra7 {[%clk 0:00:06]}  Nd3+ {[%clk 0:00:16]} 58. Kc3 {[%clk 0:00:07]}  Ne5 {[%clk 0:00:15]} 59. Bd1 {[%clk 0:00:06]}  Rh3+ {[%clk 0:00:15]} 60. Kc2 {[%clk 0:00:06]}  Nc6 {[%clk 0:00:14]} 61. Rc7 {[%clk 0:00:06]}  Nd4+ {[%clk 0:00:14]} 62. Kb2 {[%clk 0:00:06]}  Rh2 {[%clk 0:00:14]} 63. Kc3 {[%clk 0:00:07]}  Nf5 {[%clk 0:00:14]} 64. Ne4+ {[%clk 0:00:07]}  Ke5 {[%clk 0:00:14]} 65. Ng5 {[%clk 0:00:07]}  Ne3 {[%clk 0:00:12]} 66. Nf3+ {[%clk 0:00:07]}  Kf4 {[%clk 0:00:12]} 67. Nxh2 {[%clk 0:00:07]}  Nxd1+ {[%clk 0:00:13]} 68. Kd2 {[%clk 0:00:08]}  Nf2 {[%clk 0:00:14]} 69. Rf7+ {[%clk 0:00:08]}  Ke5 {[%clk 0:00:13]} 70. Rxf2 {[%clk 0:00:08]} 1-0

[Event "January 9 Early 2024"]
[Site "https://www.chess.com"]
[Date "2024.01.11"]
[Round "3"]
[White "Kozak, Antoni"]
[Black "Svane, Rasmus"]
[Result "0-1"]
[Board "308"]
[TimeControl "180+1"]
[WhiteFideId "21832030"]
[BlackFideId "4657101"]
[WhiteElo "2755"]
[BlackElo "3020"]
[WhiteTeam "POL"]
[BlackTeam "GER"]
[WhiteClock "0:00:13"]
[BlackClock "0:00:06"]

1. Nf3 {[%clk 0:03:00]}  d5 {[%clk 0:02:59]} 2. g3 {[%clk 0:03:01]}  Nd7 {[%clk 0:02:51]} 3. d4 {[%clk 0:03:00]}  Nb6 {[%clk 0:02:51]} 4. a4 {[%clk 0:02:58]}  a5 {[%clk 0:02:51]} 5. Nc3 {[%clk 0:02:59]}  Bf5 {[%clk 0:02:51]} 6. Nh4 {[%clk 0:02:59]}  Bg4 {[%clk 0:02:37]} 7. h3 {[%clk 0:02:58]}  Bh5 {[%clk 0:02:38]} 8. Bg2 {[%clk 0:02:48]}  e6 {[%clk 0:02:37]} 9. O-O {[%clk 0:02:44]}  Be7 {[%clk 0:02:37]} 10. Nf3 {[%clk 0:02:44]}  Nf6 {[%clk 0:02:36]} 11. Bf4 {[%clk 0:02:43]}  O-O {[%clk 0:02:35]} 12. Nb5 {[%clk 0:02:39]}  Ne8 {[%clk 0:02:01]} 13. Ne5 {[%clk 0:02:35]}  c6 {[%clk 0:02:01]} 14. Nc3 {[%clk 0:02:33]}  Nd6 {[%clk 0:01:52]} 15. Re1 {[%clk 0:02:26]}  Nbc4 {[%clk 0:01:49]} 16. Nd3 {[%clk 0:02:14]}  Bg6 {[%clk 0:01:47]} 17. b3 {[%clk 0:02:12]}  Nb6 {[%clk 0:01:47]} 18. Nc5 {[%clk 0:02:04]}  Ra7 {[%clk 0:01:27]} 19. e4 {[%clk 0:02:03]}  Nd7 {[%clk 0:01:26]} 20. exd5 {[%clk 0:01:38]}  exd5 {[%clk 0:01:15]} 21. Nd3 {[%clk 0:01:26]}  Nf5 {[%clk 0:01:11]} 22. Ne2 {[%clk 0:01:22]}  Bd6 {[%clk 0:01:05]} 23. c3 {[%clk 0:01:19]}  Bxf4 {[%clk 0:00:59]} 24. Nexf4 {[%clk 0:01:19]}  Ra8 {[%clk 0:00:59]} 25. h4 {[%clk 0:01:10]}  Nd6 {[%clk 0:00:56]} 26. Ne5 {[%clk 0:00:53]}  Bf5 {[%clk 0:00:42]} 27. Qf3 {[%clk 0:00:46]}  Be4 {[%clk 0:00:40]} 28. Qg4 {[%clk 0:00:45]}  Nf6 {[%clk 0:00:39]} 29. Qh3 {[%clk 0:00:39]}  Bxg2 {[%clk 0:00:34]} 30. Kxg2 {[%clk 0:00:35]}  Re8 {[%clk 0:00:33]} 31. g4 {[%clk 0:00:32]}  Nfe4 {[%clk 0:00:30]} 32. Re3 {[%clk 0:00:24]}  f6 {[%clk 0:00:30]} 33. Nf3 {[%clk 0:00:25]}  Qd7 {[%clk 0:00:29]} 34. Rae1 {[%clk 0:00:23]}  Re7 {[%clk 0:00:24]} 35. g5 {[%clk 0:00:20]}  Qxh3+ {[%clk 0:00:22]} 36. Nxh3 {[%clk 0:00:19]}  Rae8 {[%clk 0:00:22]} 37. Nf4 {[%clk 0:00:16]}  Nf5 {[%clk 0:00:22]} 38. Rd3 {[%clk 0:00:17]}  Nxh4+ {[%clk 0:00:15]} 39. Nxh4 {[%clk 0:00:16]}  fxg5 {[%clk 0:00:15]} 40. Nfg6 {[%clk 0:00:16]}  hxg6 {[%clk 0:00:15]} 41. Nxg6 {[%clk 0:00:17]}  Re6 {[%clk 0:00:14]} 42. Ne5 {[%clk 0:00:17]}  Nc5 {[%clk 0:00:11]} 43. Rh3 {[%clk 0:00:16]}  Nxb3 {[%clk 0:00:10]} 44. Reh1 {[%clk 0:00:16]}  Rh6 {[%clk 0:00:09]} 45. Rxh6 {[%clk 0:00:16]}  gxh6 {[%clk 0:00:09]} 46. Rxh6 {[%clk 0:00:16]}  Re7 {[%clk 0:00:10]} 47. Rg6+ {[%clk 0:00:16]}  Rg7 {[%clk 0:00:11]} 48. Rd6 {[%clk 0:00:17]}  Re7 {[%clk 0:00:09]} 49. Rg6+ {[%clk 0:00:16]}  Rg7 {[%clk 0:00:07]} 50. Re6 {[%clk 0:00:16]}  Nd2 {[%clk 0:00:07]} 51. Re8+ {[%clk 0:00:15]}  Kh7 {[%clk 0:00:08]} 52. Rb8 {[%clk 0:00:14]}  Ne4 {[%clk 0:00:08]} 53. c4 {[%clk 0:00:14]}  Nc3 {[%clk 0:00:07]} 54. c5 {[%clk 0:00:11]}  Nxa4 {[%clk 0:00:07]} 55. Ng4 {[%clk 0:00:10]}  Nc3 {[%clk 0:00:06]} 56. Nf6+ {[%clk 0:00:11]}  Kg6 {[%clk 0:00:07]} 57. Ne8 {[%clk 0:00:11]}  Re7 {[%clk 0:00:07]} 58. Nd6 {[%clk 0:00:12]}  Nb5 {[%clk 0:00:07]} 59. Rg8+ {[%clk 0:00:11]}  Kh7 {[%clk 0:00:07]} 60. Rd8 {[%clk 0:00:11]}  a4 {[%clk 0:00:06]} 61. Nf5 {[%clk 0:00:10]}  Rf7 {[%clk 0:00:06]} 62. Nd6 {[%clk 0:00:11]}  Rg7 {[%clk 0:00:04]} 63. Ne8 {[%clk 0:00:11]}  Re7 {[%clk 0:00:04]} 64. Nf6+ {[%clk 0:00:11]}  Kg6 {[%clk 0:00:05]} 65. Ng4 {[%clk 0:00:12]}  Re4 {[%clk 0:00:05]} 66. Ne5+ {[%clk 0:00:11]}  Kg7 {[%clk 0:00:05]} 67. Rd7+ {[%clk 0:00:11]}  Kf6 {[%clk 0:00:06]} 68. Rxb7 {[%clk 0:00:11]}  Nxd4 {[%clk 0:00:07]} 69. Nd7+ {[%clk 0:00:11]}  Ke6 {[%clk 0:00:07]} 70. Nf8+ {[%clk 0:00:11]}  Kf6 {[%clk 0:00:07]} 71. Nh7+ {[%clk 0:00:12]}  Kf5 {[%clk 0:00:07]} 72. Rf7+ {[%clk 0:00:12]}  Kg6 {[%clk 0:00:07]} 73. Ra7 {[%clk 0:00:12]}  Nb5 {[%clk 0:00:07]} 74. Nf8+ {[%clk 0:00:12]}  Kf6 {[%clk 0:00:07]} 75. Nd7+ {[%clk 0:00:12]}  Ke7 {[%clk 0:00:06]} 76. Nb8+ {[%clk 0:00:12]}  Ke6 {[%clk 0:00:06]} 77. Nxc6 {[%clk 0:00:13]}  Nxa7 {[%clk 0:00:06]} 0-1

[Event "January 9 Early 2024"]
[Site "https://www.chess.com"]
[Date "2024.01.11"]
[Round "3"]
[White "Yushko, Olga"]
[Black "Matthes, Aaron"]
[Result "0-1"]
[Board "310"]
[TimeControl "180+1"]
[WhiteFideId "14114500"]
[BlackFideId "16227310"]
[WhiteElo "2122"]
[BlackElo "2378"]
[WhiteTeam "UKR"]
[BlackTeam "GER"]
[WhiteClock "0:00:08"]
[BlackClock "0:00:09"]

1. d4 {[%clk 0:02:59]}  Nf6 {[%clk 0:02:58]} 2. c4 {[%clk 0:02:59]}  b6 {[%clk 0:02:59]} 3. Nc3 {[%clk 0:02:58]}  Bb7 {[%clk 0:02:59]} 4. Nf3 {[%clk 0:02:58]}  Ne4 {[%clk 0:02:57]} 5. Bg5 {[%clk 0:02:59]}  Nxg5 {[%clk 0:02:49]} 6. Nxg5 {[%clk 0:03:00]}  e5 {[%clk 0:02:48]} 7. Nf3 {[%clk 0:02:52]}  exd4 {[%clk 0:02:38]} 8. Qxd4 {[%clk 0:02:50]}  Nc6 {[%clk 0:02:38]} 9. Qg4 {[%clk 0:02:46]}  h5 {[%clk 0:02:30]} 10. Qg3 {[%clk 0:02:40]}  g6 {[%clk 0:02:16]} 11. Ne5 {[%clk 0:02:32]}  Bg7 {[%clk 0:02:11]} 12. Nxg6 {[%clk 0:02:31]}  fxg6 {[%clk 0:02:01]} 13. Qxg6+ {[%clk 0:02:31]}  Kf8 {[%clk 0:02:02]} 14. e3 {[%clk 0:02:16]}  Qf6 {[%clk 0:01:50]} 15. Qd3 {[%clk 0:02:10]}  Ne5 {[%clk 0:01:47]} 16. Qd2 {[%clk 0:02:02]}  Re8 {[%clk 0:01:39]} 17. O-O-O {[%clk 0:01:47]}  Ng4 {[%clk 0:01:31]} 18. Bd3 {[%clk 0:01:27]}  Kg8 {[%clk 0:01:19]} 19. Bb1 {[%clk 0:00:59]}  d6 {[%clk 0:01:06]} 20. Nd5 {[%clk 0:00:52]}  Bxd5 {[%clk 0:01:00]} 21. Qxd5+ {[%clk 0:00:51]}  Qf7 {[%clk 0:00:59]} 22. Rdf1 {[%clk 0:00:40]}  Qxd5 {[%clk 0:00:55]} 23. cxd5 {[%clk 0:00:41]}  Rh6 {[%clk 0:00:53]} 24. h3 {[%clk 0:00:41]}  Ne5 {[%clk 0:00:52]} 25. Bf5 {[%clk 0:00:40]}  Rf6 {[%clk 0:00:47]} 26. Be6+ {[%clk 0:00:39]}  Kh8 {[%clk 0:00:45]} 27. b3 {[%clk 0:00:39]}  Nd3+ {[%clk 0:00:40]} 28. Kd2 {[%clk 0:00:37]}  Nxf2 {[%clk 0:00:40]} 29. Rhg1 {[%clk 0:00:35]}  Ne4+ {[%clk 0:00:39]} 30. Kd3 {[%clk 0:00:35]}  Nc5+ {[%clk 0:00:38]} 31. Kc4 {[%clk 0:00:35]}  Rxf1 {[%clk 0:00:38]} 32. Rxf1 {[%clk 0:00:35]}  Nxe6 {[%clk 0:00:39]} 33. dxe6 {[%clk 0:00:35]}  Rxe6 {[%clk 0:00:39]} 34. Rf7 {[%clk 0:00:35]}  Re4+ {[%clk 0:00:33]} 35. Kd5 {[%clk 0:00:33]}  Re5+ {[%clk 0:00:33]} 36. Kc6 {[%clk 0:00:30]}  Rc5+ {[%clk 0:00:33]} 37. Kb7 {[%clk 0:00:30]}  a5 {[%clk 0:00:33]} 38. Rxc7 {[%clk 0:00:26]}  Rxc7+ {[%clk 0:00:19]} 39. Kxc7 {[%clk 0:00:27]}  Bc3 {[%clk 0:00:19]} 40. Kxd6 {[%clk 0:00:25]}  Kg7 {[%clk 0:00:19]} 41. Ke6 {[%clk 0:00:24]}  Kg6 {[%clk 0:00:19]} 42. e4 {[%clk 0:00:23]}  Kg5 {[%clk 0:00:18]} 43. g4 {[%clk 0:00:22]}  h4 {[%clk 0:00:18]} 44. Kd5 {[%clk 0:00:20]}  Kf4 {[%clk 0:00:18]} 45. Kc6 {[%clk 0:00:21]}  Bd4 {[%clk 0:00:18]} 46. Kd5 {[%clk 0:00:20]}  Bc5 {[%clk 0:00:18]} 47. a4 {[%clk 0:00:20]}  Kg3 {[%clk 0:00:18]} 48. e5 {[%clk 0:00:20]}  Kxh3 {[%clk 0:00:18]} 49. g5 {[%clk 0:00:20]}  Kg4 {[%clk 0:00:19]} 50. g6 {[%clk 0:00:21]}  Bf8 {[%clk 0:00:18]} 51. e6 {[%clk 0:00:22]}  h3 {[%clk 0:00:18]} 52. g7 {[%clk 0:00:22]}  Bxg7 {[%clk 0:00:18]} 53. e7 {[%clk 0:00:23]}  h2 {[%clk 0:00:18]} 54. e8=Q {[%clk 0:00:23]}  h1=Q+ {[%clk 0:00:19]} 55. Kc4 {[%clk 0:00:22]}  Qc1+ {[%clk 0:00:18]} 56. Kb5 {[%clk 0:00:22]}  Qc5+ {[%clk 0:00:17]} 57. Ka6 {[%clk 0:00:22]}  Bd4 {[%clk 0:00:15]} 58. Qe4+ {[%clk 0:00:18]}  Kg5 {[%clk 0:00:15]} 59. Qg2+ {[%clk 0:00:17]}  Kf5 {[%clk 0:00:15]} 60. Qf3+ {[%clk 0:00:17]}  Ke6 {[%clk 0:00:15]} 61. Qe4+ {[%clk 0:00:16]}  Be5 {[%clk 0:00:16]} 62. Qg6+ {[%clk 0:00:16]}  Kd5 {[%clk 0:00:15]} 63. Qf7+ {[%clk 0:00:15]}  Kd4 {[%clk 0:00:14]} 64. Qg8 {[%clk 0:00:12]}  Kc3 {[%clk 0:00:11]} 65. Qe6 {[%clk 0:00:11]}  Kb2 {[%clk 0:00:11]} 66. Qg8 {[%clk 0:00:09]}  Ka3 {[%clk 0:00:11]} 67. Qf7 {[%clk 0:00:08]}  Qc3 {[%clk 0:00:10]} 68. Qe6 {[%clk 0:00:08]}  Qxb3 {[%clk 0:00:08]} 69. Qxb3+ {[%clk 0:00:07]}  Kxb3 {[%clk 0:00:08]} 70. Kxb6 {[%clk 0:00:08]}  Bc3 {[%clk 0:00:08]} 71. Kc5 {[%clk 0:00:07]}  Kxa4 {[%clk 0:00:08]} 72. Kc4 {[%clk 0:00:08]}  Bb4 {[%clk 0:00:08]} 73. Kd3 {[%clk 0:00:08]}  Kb3 {[%clk 0:00:09]} 0-1

[Event "January 9 Early 2024"]
[Site "https://www.chess.com"]
[Date "2024.01.11"]
[Round "3"]
[White "Lima, Artur Tin Lun Dai"]
[Black "Estrada Nieto, Julian"]
[Result "0-1"]
[Board "311"]
[TimeControl "180+1"]
[WhiteFideId "22773150"]
[BlackFideId "5101018"]
[WhiteElo "2376"]
[BlackElo "2598"]
[WhiteTeam "BRA"]
[BlackTeam "ESP"]
[WhiteClock "0:00:03"]
[BlackClock "0:00:15"]

1. e4 {[%clk 0:03:00]}  e5 {[%clk 0:02:59]} 2. Nf3 {[%clk 0:03:00]}  Nc6 {[%clk 0:03:00]} 3. Bc4 {[%clk 0:03:01]}  Bc5 {[%clk 0:02:59]} 4. d3 {[%clk 0:03:01]}  Nf6 {[%clk 0:02:59]} 5. Nc3 {[%clk 0:03:01]}  d6 {[%clk 0:03:00]} 6. Na4 {[%clk 0:03:01]}  Bb6 {[%clk 0:02:56]} 7. a3 {[%clk 0:03:01]}  O-O {[%clk 0:02:55]} 8. O-O {[%clk 0:03:00]}  Be6 {[%clk 0:02:55]} 9. Bxe6 {[%clk 0:02:56]}  fxe6 {[%clk 0:02:55]} 10. c3 {[%clk 0:02:57]}  Qe8 {[%clk 0:02:50]} 11. b4 {[%clk 0:02:37]}  Nh5 {[%clk 0:02:50]} 12. d4 {[%clk 0:02:22]}  exd4 {[%clk 0:02:43]} 13. cxd4 {[%clk 0:02:22]}  Rxf3 {[%clk 0:02:16]} 14. Nxb6 {[%clk 0:02:10]}  axb6 {[%clk 0:02:14]} 15. Qxf3 {[%clk 0:02:09]}  Nxd4 {[%clk 0:02:10]} 16. Qd3 {[%clk 0:02:01]}  e5 {[%clk 0:02:03]} 17. Be3 {[%clk 0:01:58]}  Ne6 {[%clk 0:02:00]} 18. Rac1 {[%clk 0:01:48]}  Kh8 {[%clk 0:01:58]} 19. f3 {[%clk 0:01:38]}  Nhf4 {[%clk 0:01:58]} 20. Qb3 {[%clk 0:01:33]}  Ne2+ {[%clk 0:01:52]} 21. Kh1 {[%clk 0:01:31]}  Nxc1 {[%clk 0:01:53]} 22. Rxc1 {[%clk 0:01:31]}  Qd7 {[%clk 0:01:42]} 23. b5 {[%clk 0:01:24]}  Nc5 {[%clk 0:01:35]} 24. Bxc5 {[%clk 0:01:20]}  bxc5 {[%clk 0:01:31]} 25. a4 {[%clk 0:01:20]}  b6 {[%clk 0:01:30]} 26. h3 {[%clk 0:01:18]}  h6 {[%clk 0:01:30]} 27. Qc4 {[%clk 0:01:17]}  Qe8 {[%clk 0:01:24]} 28. Rf1 {[%clk 0:01:12]}  Qg8 {[%clk 0:01:24]} 29. Qc2 {[%clk 0:01:11]}  Qe6 {[%clk 0:01:23]} 30. f4 {[%clk 0:01:08]}  exf4 {[%clk 0:01:21]} 31. Rxf4 {[%clk 0:01:09]}  Kg8 {[%clk 0:01:19]} 32. Rg4 {[%clk 0:00:56]}  Rf8 {[%clk 0:01:16]} 33. Qc3 {[%clk 0:00:51]}  Qf6 {[%clk 0:01:13]} 34. Qc4+ {[%clk 0:00:44]}  Kh8 {[%clk 0:01:08]} 35. Qd5 {[%clk 0:00:45]}  Qd4 {[%clk 0:01:01]} 36. Qe6 {[%clk 0:00:33]}  Rf1+ {[%clk 0:00:49]} 37. Kh2 {[%clk 0:00:33]}  Qe5+ {[%clk 0:00:46]} 38. Qxe5 {[%clk 0:00:33]}  dxe5 {[%clk 0:00:46]} 39. Rg6 {[%clk 0:00:33]}  Rf6 {[%clk 0:00:42]} 40. Rg3 {[%clk 0:00:28]}  Rf4 {[%clk 0:00:41]} 41. Rd3 {[%clk 0:00:26]}  Rxe4 {[%clk 0:00:38]} 42. Rd7 {[%clk 0:00:27]}  Rxa4 {[%clk 0:00:36]} 43. Rxc7 {[%clk 0:00:27]}  Rb4 {[%clk 0:00:37]} 44. Re7 {[%clk 0:00:28]}  e4 {[%clk 0:00:36]} 45. Kg3 {[%clk 0:00:27]}  Rxb5 {[%clk 0:00:33]} 46. Kf4 {[%clk 0:00:27]}  Rb2 {[%clk 0:00:28]} 47. Kf5 {[%clk 0:00:20]}  Rxg2 {[%clk 0:00:23]} 48. Rxe4 {[%clk 0:00:18]}  Kh7 {[%clk 0:00:20]} 49. Re7 {[%clk 0:00:17]}  Rb2 {[%clk 0:00:20]} 50. Rc7 {[%clk 0:00:17]}  Rb3 {[%clk 0:00:18]} 51. h4 {[%clk 0:00:17]}  Rb4 {[%clk 0:00:18]} 52. h5 {[%clk 0:00:17]}  Rh4 {[%clk 0:00:18]} 53. Rc6 {[%clk 0:00:17]}  Rxh5+ {[%clk 0:00:18]} 54. Kf4 {[%clk 0:00:18]}  Rh4+ {[%clk 0:00:18]} 55. Kg3 {[%clk 0:00:18]}  Rb4 {[%clk 0:00:19]} 56. Kf3 {[%clk 0:00:18]}  c4 {[%clk 0:00:20]} 57. Ke3 {[%clk 0:00:18]}  Rb3+ {[%clk 0:00:20]} 58. Kd4 {[%clk 0:00:19]}  b5 {[%clk 0:00:20]} 59. Rc5 {[%clk 0:00:19]}  Rb1 {[%clk 0:00:20]} 60. Kc3 {[%clk 0:00:19]}  Kg6 {[%clk 0:00:19]} 61. Rd5 {[%clk 0:00:19]}  h5 {[%clk 0:00:19]} 62. Rd6+ {[%clk 0:00:18]}  Kh7 {[%clk 0:00:19]} 63. Rd5 {[%clk 0:00:18]}  g6 {[%clk 0:00:19]} 64. Rd7+ {[%clk 0:00:18]}  Kh6 {[%clk 0:00:19]} 65. Rd8 {[%clk 0:00:18]}  h4 {[%clk 0:00:19]} 66. Rh8+ {[%clk 0:00:19]}  Kg5 {[%clk 0:00:19]} 67. Rh7 {[%clk 0:00:20]}  Kg4 {[%clk 0:00:18]} 68. Rg7 {[%clk 0:00:20]}  g5 {[%clk 0:00:19]} 69. Kc2 {[%clk 0:00:21]}  Rb3 {[%clk 0:00:18]} 70. Rd7 {[%clk 0:00:21]}  h3 {[%clk 0:00:18]} 71. Rd2 {[%clk 0:00:19]}  Kg3 {[%clk 0:00:17]} 72. Rd1 {[%clk 0:00:17]}  g4 {[%clk 0:00:17]} 73. Rg1+ {[%clk 0:00:17]}  Kh4 {[%clk 0:00:17]} 74. Rh1 {[%clk 0:00:17]}  g3 {[%clk 0:00:17]} 75. Rd1 {[%clk 0:00:18]}  h2 {[%clk 0:00:17]} 76. Rd4+ {[%clk 0:00:18]}  Kh3 {[%clk 0:00:17]} 77. Rd1 {[%clk 0:00:12]}  g2 {[%clk 0:00:17]} 78. Re1 {[%clk 0:00:13]}  h1=Q {[%clk 0:00:17]} 79. Ra1 {[%clk 0:00:07]}  Rc3+ {[%clk 0:00:15]} 80. Kb2 {[%clk 0:00:05]}  Qxa1+ {[%clk 0:00:15]} 81. Kxa1 {[%clk 0:00:04]}  g1=Q+ {[%clk 0:00:16]} 82. Ka2 {[%clk 0:00:04]}  Qg2+ {[%clk 0:00:14]} 83. Kb1 {[%clk 0:00:03]}  Rb3+ {[%clk 0:00:15]} 0-1